[Event "Titled Tuesday Blitz January 25 2022"]
[White "Andreikin, Dmitry"]
[Black "Shevchenko, Kirill"]
[WhiteFideId "4158814"]
[BlackFideId "14129574"]
[WhiteElo "2736"]
[BlackElo "2624"]
[Result "1-0"]
[Round "11"]
[TimeControl "180+1"]
[Date "2022.01.26"]
[WhiteClock "0:00:06"]
[BlackClock "0:00:02"]

1. d4 {[%clk 0:03:00]}  Nf6 {[%clk 0:02:56]} 2. c4 {[%clk 0:03:01]}  g6 {[%clk 0:02:56]} 3. Nc3 {[%clk 0:03:00]}  Bg7 {[%clk 0:02:56]} 4. e4 {[%clk 0:03:00]}  d6 {[%clk 0:02:57]} 5. h3 {[%clk 0:03:00]}  O-O {[%clk 0:02:57]} 6. Be3 {[%clk 0:03:00]}  Nc6 {[%clk 0:02:56]} 7. d5 {[%clk 0:02:49]}  Ne5 {[%clk 0:02:36]} 8. f4 {[%clk 0:02:44]}  Ned7 {[%clk 0:02:36]} 9. Nf3 {[%clk 0:02:43]}  c6 {[%clk 0:02:30]} 10. Bd3 {[%clk 0:02:42]}  cxd5 {[%clk 0:02:29]} 11. cxd5 {[%clk 0:02:38]}  b6 {[%clk 0:02:17]} 12. O-O {[%clk 0:02:34]}  Nc5 {[%clk 0:02:17]} 13. Bc2 {[%clk 0:02:31]}  Ba6 {[%clk 0:02:17]} 14. Re1 {[%clk 0:02:29]}  e6 {[%clk 0:01:43]} 15. b4 {[%clk 0:02:22]}  Ncd7 {[%clk 0:01:28]} 16. dxe6 {[%clk 0:02:22]}  fxe6 {[%clk 0:01:29]} 17. Qxd6 {[%clk 0:02:21]}  Rc8 {[%clk 0:01:30]} 18. Bd4 {[%clk 0:02:01]}  Ne8 {[%clk 0:01:18]} 19. Qxe6+ {[%clk 0:01:59]}  Kh8 {[%clk 0:01:19]} 20. Rad1 {[%clk 0:01:49]}  Bxd4+ {[%clk 0:00:42]} 21. Rxd4 {[%clk 0:01:50]}  Rxc3 {[%clk 0:00:35]} 22. Rxd7 {[%clk 0:01:48]}  Qf6 {[%clk 0:00:36]} 23. Bb3 {[%clk 0:01:40]}  Rxf3 {[%clk 0:00:28]} 24. gxf3 {[%clk 0:01:28]}  Qxf4 {[%clk 0:00:28]} 25. Qg4 {[%clk 0:01:16]}  Qe5 {[%clk 0:00:27]} 26. Rd5 {[%clk 0:00:32]}  Qc3 {[%clk 0:00:27]} 27. Qg3 {[%clk 0:00:26]}  Nf6 {[%clk 0:00:26]} 28. Rg5 {[%clk 0:00:21]}  Nh5 {[%clk 0:00:18]} 29. Qe5+ {[%clk 0:00:20]}  Qxe5 {[%clk 0:00:17]} 30. Rxe5 {[%clk 0:00:21]}  Nf4 {[%clk 0:00:17]} 31. Re7 {[%clk 0:00:17]}  Nxh3+ {[%clk 0:00:16]} 32. Kh2 {[%clk 0:00:14]}  Ng5 {[%clk 0:00:16]} 33. Rc1 {[%clk 0:00:13]}  Nxf3+ {[%clk 0:00:12]} 34. Kg3 {[%clk 0:00:13]}  Ng5 {[%clk 0:00:13]} 35. Rcc7 {[%clk 0:00:10]}  Bd3 {[%clk 0:00:13]} 36. Bd5 {[%clk 0:00:10]}  Be2 {[%clk 0:00:06]} 37. Rxa7 {[%clk 0:00:08]}  h5 {[%clk 0:00:06]} 38. Kh4 {[%clk 0:00:06]}  Nf3+ {[%clk 0:00:06]} 39. Kg3 {[%clk 0:00:07]}  Ng5 {[%clk 0:00:06]} 40. e5 {[%clk 0:00:07]}  Bg4 {[%clk 0:00:04]} 41. Kh4 {[%clk 0:00:06]}  Nf3+ {[%clk 0:00:01]} 42. Bxf3 {[%clk 0:00:06]}  Rxf3 {[%clk 0:00:02]} 43. Re8+ {[%clk 0:00:06]} 1-0


[Site "https://www.chess.com"]

[Event "Titled Tuesday Blitz January 25 2022"]
[White "Artemenko, Oleg"]
[Black "Stribuk, Artiom"]
[WhiteFideId "14201798"]
[BlackFideId "13515659"]
[WhiteElo "2287"]
[BlackElo "2224"]
[Result "1-0"]
[Round "11"]
[TimeControl "180+1"]
[Date "2022.01.26"]
[WhiteClock "0:01:05"]
[BlackClock "0:00:02"]

1. d4 {[%clk 0:03:00]}  Nf6 {[%clk 0:02:53]} 2. Nc3 {[%clk 0:02:59]}  d5 {[%clk 0:02:51]} 3. Bf4 {[%clk 0:02:59]}  Bf5 {[%clk 0:02:49]} 4. f3 {[%clk 0:02:59]}  e6 {[%clk 0:02:46]} 5. g4 {[%clk 0:02:59]}  Bg6 {[%clk 0:02:46]} 6. h4 {[%clk 0:02:59]}  h5 {[%clk 0:02:47]} 7. g5 {[%clk 0:02:59]}  Nfd7 {[%clk 0:02:48]} 8. e3 {[%clk 0:03:00]}  Be7 {[%clk 0:02:48]} 9. Bd3 {[%clk 0:02:38]}  O-O {[%clk 0:02:48]} 10. Bxg6 {[%clk 0:02:38]}  fxg6 {[%clk 0:02:48]} 11. Qd3 {[%clk 0:02:39]}  Kh7 {[%clk 0:02:47]} 12. Nge2 {[%clk 0:02:38]}  c5 {[%clk 0:02:33]} 13. O-O-O {[%clk 0:02:37]}  Nc6 {[%clk 0:02:31]} 14. Bh2 {[%clk 0:02:37]}  Rxf3 {[%clk 0:01:36]} 15. Nf4 {[%clk 0:02:36]}  Nf8 {[%clk 0:01:37]} 16. Qe2 {[%clk 0:02:34]}  cxd4 {[%clk 0:01:36]} 17. exd4 {[%clk 0:02:32]}  Rxc3 {[%clk 0:01:36]} 18. bxc3 {[%clk 0:02:32]}  Qa5 {[%clk 0:01:29]} 19. Rd3 {[%clk 0:02:03]}  Qxa2 {[%clk 0:01:10]} 20. Rf1 {[%clk 0:02:02]}  Na5 {[%clk 0:01:05]} 21. Kd2 {[%clk 0:01:38]}  Nc4+ {[%clk 0:00:47]} 22. Ke1 {[%clk 0:01:37]}  Bd6 {[%clk 0:00:35]} 23. Rdf3 {[%clk 0:01:32]}  Re8 {[%clk 0:00:29]} 24. Kf2 {[%clk 0:01:23]}  e5 {[%clk 0:00:22]} 25. Kg2 {[%clk 0:01:21]}  e4 {[%clk 0:00:20]} 26. R3f2 {[%clk 0:01:21]}  Bxf4 {[%clk 0:00:19]} 27. Rxf4 {[%clk 0:01:14]}  Ne6 {[%clk 0:00:19]} 28. Rf7 {[%clk 0:01:13]}  Qxc2 {[%clk 0:00:18]} 29. Qxc2 {[%clk 0:01:12]}  Ne3+ {[%clk 0:00:19]} 30. Kg1 {[%clk 0:01:13]}  Nxc2 {[%clk 0:00:19]} 31. Rxb7 {[%clk 0:01:13]}  Ne3 {[%clk 0:00:19]} 32. Rff7 {[%clk 0:01:12]}  Nf5 {[%clk 0:00:19]} 33. Be5 {[%clk 0:01:11]}  e3 {[%clk 0:00:16]} 34. Rxa7 {[%clk 0:01:10]}  Rc8 {[%clk 0:00:16]} 35. Ra6 {[%clk 0:01:10]}  Rxc3 {[%clk 0:00:08]} 36. Rxf5 {[%clk 0:01:08]}  e2 {[%clk 0:00:02]} 37. Kf2 {[%clk 0:01:05]}  Re3 {[%clk 0:00:01]} 38. Ke1 {[%clk 0:01:05]}  gxf5 {[%clk 0:00:01]} 39. Rxe6 {[%clk 0:01:06]}  f4 {[%clk 0:00:02]} 40. g6+ {[%clk 0:01:05]} 1-0


[Site "https://www.chess.com"]

[Event "Titled Tuesday Blitz January 25 2022"]
[White "Atakhan, Abtin"]
[Black "Ogloblin, Nikolay"]
[WhiteFideId "22502203"]
[BlackFideId "4139658"]
[WhiteElo "2119"]
[BlackElo "2306"]
[Result "0-1"]
[Round "11"]
[TimeControl "180+1"]
[Date "2022.01.26"]
[WhiteClock "0:00:03"]
[BlackClock "0:00:49"]

1. d4 {[%clk 0:03:00]}  Nf6 {[%clk 0:02:58]} 2. Nf3 {[%clk 0:03:01]}  e6 {[%clk 0:02:58]} 3. g3 {[%clk 0:03:01]}  b5 {[%clk 0:02:58]} 4. Bg2 {[%clk 0:03:01]}  Bb7 {[%clk 0:02:59]} 5. a4 {[%clk 0:03:00]}  b4 {[%clk 0:02:58]} 6. c3 {[%clk 0:03:00]}  c5 {[%clk 0:02:56]} 7. O-O {[%clk 0:02:59]}  a5 {[%clk 0:02:55]} 8. Nbd2 {[%clk 0:02:54]}  d5 {[%clk 0:02:55]} 9. dxc5 {[%clk 0:02:33]}  Bxc5 {[%clk 0:02:48]} 10. Nb3 {[%clk 0:02:33]}  Be7 {[%clk 0:02:46]} 11. Ne5 {[%clk 0:02:23]}  O-O {[%clk 0:02:46]} 12. Be3 {[%clk 0:02:21]}  bxc3 {[%clk 0:02:44]} 13. bxc3 {[%clk 0:02:21]}  Nbd7 {[%clk 0:02:45]} 14. Nd3 {[%clk 0:02:15]}  Ba6 {[%clk 0:02:42]} 15. Nd4 {[%clk 0:02:07]}  Rc8 {[%clk 0:02:38]} 16. Nb5 {[%clk 0:02:07]}  Nc5 {[%clk 0:02:33]} 17. Nxc5 {[%clk 0:02:04]}  Bxc5 {[%clk 0:02:32]} 18. Bxc5 {[%clk 0:02:00]}  Rxc5 {[%clk 0:02:33]} 19. Qd4 {[%clk 0:02:01]}  Rc4 {[%clk 0:02:32]} 20. Qa7 {[%clk 0:02:01]}  Bxb5 {[%clk 0:02:30]} 21. axb5 {[%clk 0:02:00]}  Rxc3 {[%clk 0:02:30]} 22. Rxa5 {[%clk 0:02:00]}  Rb3 {[%clk 0:02:29]} 23. Rc1 {[%clk 0:01:53]}  Qb8 {[%clk 0:02:27]} 24. Qc5 {[%clk 0:01:45]}  h5 {[%clk 0:02:24]} 25. Bf3 {[%clk 0:01:29]}  g6 {[%clk 0:02:23]} 26. Kg2 {[%clk 0:01:29]}  Kg7 {[%clk 0:02:23]} 27. h4 {[%clk 0:01:27]}  Rb2 {[%clk 0:02:21]} 28. Qc6 {[%clk 0:01:19]}  Rb4 {[%clk 0:02:13]} 29. Rc2 {[%clk 0:01:09]}  Rd8 {[%clk 0:02:12]} 30. Qc7 {[%clk 0:01:05]}  Qxc7 {[%clk 0:02:01]} 31. Rxc7 {[%clk 0:01:06]}  Rd7 {[%clk 0:02:01]} 32. Rxd7 {[%clk 0:00:56]}  Nxd7 {[%clk 0:02:00]} 33. e3 {[%clk 0:00:57]}  Ne5 {[%clk 0:01:55]} 34. Be2 {[%clk 0:00:56]}  Kf6 {[%clk 0:01:55]} 35. Ra8 {[%clk 0:00:44]}  Nc4 {[%clk 0:01:53]} 36. Rb8 {[%clk 0:00:42]}  Rb2 {[%clk 0:01:48]} 37. Kf1 {[%clk 0:00:39]}  Nd2+ {[%clk 0:01:44]} 38. Kg2 {[%clk 0:00:33]}  Ne4 {[%clk 0:01:43]} 39. Kf1 {[%clk 0:00:31]}  Nc3 {[%clk 0:01:41]} 40. Bd3 {[%clk 0:00:31]}  e5 {[%clk 0:01:40]} 41. b6 {[%clk 0:00:29]}  e4 {[%clk 0:01:39]} 42. Ba6 {[%clk 0:00:29]}  Na4 {[%clk 0:01:26]} 43. b7 {[%clk 0:00:26]}  Nc5 {[%clk 0:01:26]} 44. Ra8 {[%clk 0:00:20]}  Nxa6 {[%clk 0:01:15]} 45. Rxa6+ {[%clk 0:00:19]}  Ke5 {[%clk 0:01:15]} 46. Ra7 {[%clk 0:00:18]}  f6 {[%clk 0:01:15]} 47. Kg2 {[%clk 0:00:17]}  g5 {[%clk 0:01:13]} 48. hxg5 {[%clk 0:00:16]}  fxg5 {[%clk 0:01:13]} 49. Kg1 {[%clk 0:00:15]}  Kf5 {[%clk 0:01:12]} 50. Ra5 {[%clk 0:00:14]}  Ke6 {[%clk 0:01:10]} 51. Ra6+ {[%clk 0:00:14]}  Ke5 {[%clk 0:01:09]} 52. Ra7 {[%clk 0:00:11]}  Kf5 {[%clk 0:01:08]} 53. Ra5 {[%clk 0:00:10]}  Rxb7 {[%clk 0:01:05]} 54. Rxd5+ {[%clk 0:00:10]}  Kg4 {[%clk 0:01:05]} 55. Kg2 {[%clk 0:00:10]}  h4 {[%clk 0:01:02]} 56. Re5 {[%clk 0:00:08]}  h3+ {[%clk 0:01:00]} 57. Kh2 {[%clk 0:00:06]}  Kf3 {[%clk 0:01:00]} 58. Rxg5 {[%clk 0:00:04]}  Kxf2 {[%clk 0:00:58]} 59. Kxh3 {[%clk 0:00:04]}  Kxe3 {[%clk 0:00:58]} 60. Re5 {[%clk 0:00:03]}  Rg7 {[%clk 0:00:56]} 61. Re8 {[%clk 0:00:02]}  Kf3 {[%clk 0:00:56]} 62. Kh4 {[%clk 0:00:02]}  Rg4+ {[%clk 0:00:55]} 63. Kh5 {[%clk 0:00:01]}  Rxg3 {[%clk 0:00:55]} 64. Kh4 {[%clk 0:00:02]}  Rg4+ {[%clk 0:00:54]} 65. Kh3 {[%clk 0:00:02]}  Rf4 {[%clk 0:00:55]} 66. Kh2 {[%clk 0:00:02]}  e3 {[%clk 0:00:55]} 67. Kg1 {[%clk 0:00:02]}  Ke2 {[%clk 0:00:55]} 68. Kg2 {[%clk 0:00:02]}  Rf2+ {[%clk 0:00:55]} 69. Kg3 {[%clk 0:00:02]}  Rf7 {[%clk 0:00:54]} 70. Re5 {[%clk 0:00:01]}  Kd3 {[%clk 0:00:51]} 71. Rd5+ {[%clk 0:00:01]}  Ke4 {[%clk 0:00:51]} 72. Rd8 {[%clk 0:00:01]}  e2 {[%clk 0:00:51]} 73. Re8+ {[%clk 0:00:02]}  Kd3 {[%clk 0:00:51]} 74. Rd8+ {[%clk 0:00:02]}  Kc2 {[%clk 0:00:51]} 75. Re8 {[%clk 0:00:03]}  Kd1 {[%clk 0:00:52]} 76. Rd8+ {[%clk 0:00:03]}  Ke1 {[%clk 0:00:52]} 77. Re8 {[%clk 0:00:03]}  Rg7+ {[%clk 0:00:52]} 78. Kf3 {[%clk 0:00:03]}  Kf1 {[%clk 0:00:49]} 0-1


[Site "https://www.chess.com"]

[Event "Titled Tuesday Blitz January 25 2022"]
[White "Babazada, Khazar"]
[Black "Howell, David W L"]
[WhiteFideId "13413554"]
[BlackFideId "410608"]
[WhiteElo "2418"]
[BlackElo "2559"]
[Result "0-1"]
[Round "11"]
[TimeControl "180+1"]
[Date "2022.01.26"]
[WhiteClock "0:00:03"]
[BlackClock "0:00:29"]

1. Nf3 {[%clk 0:03:00]}  Nc6 {[%clk 0:02:46]} 2. d4 {[%clk 0:02:57]}  d5 {[%clk 0:02:46]} 3. g3 {[%clk 0:02:58]}  Bf5 {[%clk 0:02:44]} 4. Bg2 {[%clk 0:02:58]}  Nb4 {[%clk 0:02:45]} 5. Na3 {[%clk 0:02:58]}  h6 {[%clk 0:02:39]} 6. O-O {[%clk 0:02:58]}  e6 {[%clk 0:02:39]} 7. c3 {[%clk 0:02:57]}  Nc6 {[%clk 0:02:39]} 8. Nc2 {[%clk 0:02:58]}  Nf6 {[%clk 0:02:39]} 9. Re1 {[%clk 0:02:50]}  Be7 {[%clk 0:02:37]} 10. Bf4 {[%clk 0:02:37]}  O-O {[%clk 0:02:35]} 11. h4 {[%clk 0:02:34]}  a5 {[%clk 0:02:27]} 12. Ne5 {[%clk 0:02:18]}  Nxe5 {[%clk 0:02:22]} 13. dxe5 {[%clk 0:02:19]}  Ne4 {[%clk 0:02:15]} 14. Nd4 {[%clk 0:02:06]}  Bh7 {[%clk 0:02:15]} 15. h5 {[%clk 0:01:40]}  a4 {[%clk 0:02:11]} 16. Rc1 {[%clk 0:01:37]}  c5 {[%clk 0:02:03]} 17. Nb5 {[%clk 0:01:21]}  Qb6 {[%clk 0:02:03]} 18. c4 {[%clk 0:01:22]}  Rfd8 {[%clk 0:01:52]} 19. Bxe4 {[%clk 0:00:24]}  Bxe4 {[%clk 0:01:53]} 20. Nd6 {[%clk 0:00:23]}  Bxd6 {[%clk 0:01:52]} 21. exd6 {[%clk 0:00:24]}  Qxb2 {[%clk 0:01:53]} 22. cxd5 {[%clk 0:00:24]}  exd5 {[%clk 0:01:53]} 23. Rxc5 {[%clk 0:00:24]}  Qxa2 {[%clk 0:01:33]} 24. Qd4 {[%clk 0:00:24]}  a3 {[%clk 0:01:28]} 25. f3 {[%clk 0:00:17]}  Bf5 {[%clk 0:01:18]} 26. Be5 {[%clk 0:00:17]}  f6 {[%clk 0:01:10]} 27. Bxf6 {[%clk 0:00:17]}  gxf6 {[%clk 0:01:11]} 28. Qxf6 {[%clk 0:00:17]}  Qd2 {[%clk 0:01:11]} 29. Kf2 {[%clk 0:00:10]}  Qg5 {[%clk 0:01:05]} 30. Qd4 {[%clk 0:00:07]}  Be6 {[%clk 0:01:02]} 31. Rc7 {[%clk 0:00:06]}  a2 {[%clk 0:00:58]} 32. f4 {[%clk 0:00:05]}  Qg4 {[%clk 0:00:57]} 33. Ra1 {[%clk 0:00:05]}  Rxd6 {[%clk 0:00:54]} 34. Rxb7 {[%clk 0:00:04]}  Bf7 {[%clk 0:00:46]} 35. Rc1 {[%clk 0:00:04]}  Re6 {[%clk 0:00:42]} 36. e3 {[%clk 0:00:04]}  Qxh5 {[%clk 0:00:39]} 37. Rcc7 {[%clk 0:00:03]}  a1=Q {[%clk 0:00:29]} 0-1


[Site "https://www.chess.com"]

[Event "Titled Tuesday Blitz January 25 2022"]
[White "Bambino Filho, Antonio Carlos"]
[Black "Jary, Sergey"]
[WhiteFideId "2113163"]
[BlackFideId "14110350"]
[WhiteElo "2443"]
[BlackElo "2260"]
[Result "1-0"]
[Round "11"]
[TimeControl "180+1"]
[Date "2022.01.26"]
[WhiteClock "0:01:55"]
[BlackClock "0:00:49"]

1. d4 {[%clk 0:03:00]}  Nf6 {[%clk 0:02:59]} 2. c4 {[%clk 0:03:00]}  g6 {[%clk 0:03:00]} 3. Nc3 {[%clk 0:03:01]}  Bg7 {[%clk 0:03:00]} 4. e4 {[%clk 0:03:01]}  d6 {[%clk 0:03:01]} 5. Be2 {[%clk 0:03:01]}  O-O {[%clk 0:03:01]} 6. Bg5 {[%clk 0:03:02]}  h6 {[%clk 0:03:01]} 7. Be3 {[%clk 0:03:02]}  e6 {[%clk 0:02:58]} 8. Qd2 {[%clk 0:03:02]}  Kh7 {[%clk 0:02:57]} 9. h4 {[%clk 0:02:55]}  h5 {[%clk 0:02:30]} 10. Nh3 {[%clk 0:02:53]}  d5 {[%clk 0:02:30]} 11. Ng5+ {[%clk 0:02:51]}  Kg8 {[%clk 0:02:29]} 12. e5 {[%clk 0:02:52]}  Nh7 {[%clk 0:02:14]} 13. g4 {[%clk 0:02:50]}  Nxg5 {[%clk 0:02:08]} 14. hxg5 {[%clk 0:02:47]}  hxg4 {[%clk 0:02:05]} 15. Bxg4 {[%clk 0:02:46]}  dxc4 {[%clk 0:02:01]} 16. Ne4 {[%clk 0:02:45]}  Nd7 {[%clk 0:01:39]} 17. f4 {[%clk 0:02:39]}  c5 {[%clk 0:01:33]} 18. dxc5 {[%clk 0:02:25]}  Qe7 {[%clk 0:01:15]} 19. Nf6+ {[%clk 0:02:07]}  Nxf6 {[%clk 0:01:14]} 20. gxf6 {[%clk 0:02:08]}  Bxf6 {[%clk 0:01:15]} 21. exf6 {[%clk 0:02:08]}  Qxf6 {[%clk 0:01:15]} 22. Bd4 {[%clk 0:02:09]}  e5 {[%clk 0:01:12]} 23. Bxe5 {[%clk 0:02:08]}  Re8 {[%clk 0:01:08]} 24. O-O-O {[%clk 0:01:59]}  Rxe5 {[%clk 0:01:05]} 25. fxe5 {[%clk 0:02:00]}  Qxe5 {[%clk 0:00:57]} 26. Qd8+ {[%clk 0:01:57]}  Kg7 {[%clk 0:00:49]} 27. Qh8# {[%clk 0:01:55]} 1-0


[Site "https://www.chess.com"]

[Event "Titled Tuesday Blitz January 25 2022"]
[White "Bauer, Thomas"]
[Black "Papp, Levente"]
[WhiteFideId "1639293"]
[BlackFideId "751243"]
[WhiteElo "2220"]
[BlackElo "2308"]
[Result "0-1"]
[Round "11"]
[TimeControl "180+1"]
[Date "2022.01.26"]
[WhiteClock "0:00:02"]
[BlackClock "0:00:41"]

1. e4 {[%clk 0:02:56]}  e6 {[%clk 0:03:00]} 2. d3 {[%clk 0:02:54]}  d5 {[%clk 0:03:00]} 3. Nd2 {[%clk 0:02:55]}  Nf6 {[%clk 0:03:00]} 4. Ngf3 {[%clk 0:02:54]}  Bc5 {[%clk 0:03:00]} 5. h3 {[%clk 0:02:44]}  O-O {[%clk 0:02:59]} 6. g3 {[%clk 0:02:22]}  Nc6 {[%clk 0:02:58]} 7. Bg2 {[%clk 0:02:21]}  dxe4 {[%clk 0:02:55]} 8. dxe4 {[%clk 0:02:21]}  e5 {[%clk 0:02:55]} 9. O-O {[%clk 0:02:18]}  h6 {[%clk 0:02:51]} 10. Qe2 {[%clk 0:02:16]}  Be6 {[%clk 0:02:50]} 11. Qb5 {[%clk 0:02:16]}  Qe7 {[%clk 0:02:40]} 12. Qxb7 {[%clk 0:02:13]}  Nb4 {[%clk 0:02:39]} 13. Qb5 {[%clk 0:01:49]}  Nxc2 {[%clk 0:02:33]} 14. Rb1 {[%clk 0:01:47]}  Bxa2 {[%clk 0:02:26]} 15. Nb3 {[%clk 0:01:39]}  Bb6 {[%clk 0:02:17]} 16. Nh4 {[%clk 0:01:20]}  Qe6 {[%clk 0:02:03]} 17. Nd2 {[%clk 0:01:04]}  g6 {[%clk 0:01:49]} 18. Qd3 {[%clk 0:00:55]}  Qc6 {[%clk 0:01:32]} 19. Rd1 {[%clk 0:00:12]}  Rad8 {[%clk 0:01:30]} 20. Qf1 {[%clk 0:00:12]}  Bxb1 {[%clk 0:01:19]} 21. Nxb1 {[%clk 0:00:13]}  Kg7 {[%clk 0:01:10]} 22. Nc3 {[%clk 0:00:11]}  Qc5 {[%clk 0:00:53]} 23. Na4 {[%clk 0:00:06]}  Qxf2+ {[%clk 0:00:52]} 24. Kh2 {[%clk 0:00:04]}  Rxd1 {[%clk 0:00:47]} 25. Qxd1 {[%clk 0:00:03]}  Be3 {[%clk 0:00:45]} 26. Nc3 {[%clk 0:00:01]}  Bxc1 {[%clk 0:00:42]} 27. Qxc1 {[%clk 0:00:02]}  Ne3 {[%clk 0:00:41]} 0-1


[Site "https://www.chess.com"]

[Event "Titled Tuesday Blitz January 25 2022"]
[White "Bethke, Richard"]
[Black "Kim, Sergey"]
[WhiteFideId "12959243"]
[BlackFideId "13700570"]
[WhiteElo "2459"]
[BlackElo "2597"]
[Result "0-1"]
[Round "11"]
[TimeControl "180+1"]
[Date "2022.01.26"]
[WhiteClock "0:00:52"]
[BlackClock "0:01:50"]

1. e3 {[%clk 0:03:00]}  Nf6 {[%clk 0:02:59]} 2. c4 {[%clk 0:03:00]}  g6 {[%clk 0:02:59]} 3. Nc3 {[%clk 0:02:59]}  Bg7 {[%clk 0:03:00]} 4. b3 {[%clk 0:03:00]}  O-O {[%clk 0:03:00]} 5. Bb2 {[%clk 0:03:00]}  d6 {[%clk 0:03:01]} 6. g3 {[%clk 0:03:01]}  e5 {[%clk 0:03:01]} 7. Bg2 {[%clk 0:03:01]}  Re8 {[%clk 0:03:00]} 8. Nge2 {[%clk 0:03:02]}  c6 {[%clk 0:03:00]} 9. O-O {[%clk 0:03:02]}  Nbd7 {[%clk 0:03:00]} 10. d4 {[%clk 0:03:02]}  e4 {[%clk 0:02:57]} 11. d5 {[%clk 0:03:02]}  c5 {[%clk 0:02:57]} 12. Qc2 {[%clk 0:03:01]}  Qe7 {[%clk 0:02:34]} 13. Rad1 {[%clk 0:02:59]}  h5 {[%clk 0:02:31]} 14. Rfe1 {[%clk 0:02:49]}  h4 {[%clk 0:02:28]} 15. Nf4 {[%clk 0:02:49]}  Nf8 {[%clk 0:02:26]} 16. f3 {[%clk 0:02:48]}  exf3 {[%clk 0:02:24]} 17. Bxf3 {[%clk 0:02:49]}  h3 {[%clk 0:02:21]} 18. e4 {[%clk 0:02:44]}  N8d7 {[%clk 0:02:16]} 19. Nd3 {[%clk 0:02:12]}  Nh7 {[%clk 0:02:07]} 20. Ne2 {[%clk 0:02:10]}  Ng5 {[%clk 0:02:05]} 21. Bh1 {[%clk 0:02:09]}  Ne5 {[%clk 0:02:01]} 22. Nxe5 {[%clk 0:02:02]}  Bxe5 {[%clk 0:02:00]} 23. Bxe5 {[%clk 0:01:53]}  Qxe5 {[%clk 0:01:59]} 24. Qc3 {[%clk 0:01:15]}  Bg4 {[%clk 0:01:58]} 25. Rd2 {[%clk 0:01:00]}  Nxe4 {[%clk 0:01:53]} 26. Bxe4 {[%clk 0:00:52]}  Qxe4 {[%clk 0:01:50]} 0-1


[Site "https://www.chess.com"]

[Event "Titled Tuesday Blitz January 25 2022"]
[White "Bodnar, Nikolay"]
[Black "Sinitsina, Anastassia"]
[WhiteFideId "14106469"]
[BlackFideId "4504640"]
[WhiteElo "2296"]
[BlackElo "2144"]
[Result "1-0"]
[Round "11"]
[TimeControl "180+1"]
[Date "2022.01.26"]
[WhiteClock "0:01:33"]
[BlackClock "0:00:11"]

1. e4 {[%clk 0:03:00]}  e5 {[%clk 0:02:59]} 2. Nf3 {[%clk 0:03:00]}  Nc6 {[%clk 0:03:00]} 3. Bc4 {[%clk 0:03:01]}  Bc5 {[%clk 0:02:59]} 4. c3 {[%clk 0:03:01]}  Nf6 {[%clk 0:02:59]} 5. d3 {[%clk 0:03:02]}  d6 {[%clk 0:02:55]} 6. O-O {[%clk 0:03:02]}  h6 {[%clk 0:02:36]} 7. b4 {[%clk 0:02:40]}  Bb6 {[%clk 0:02:35]} 8. a4 {[%clk 0:02:41]}  a5 {[%clk 0:02:35]} 9. b5 {[%clk 0:02:40]}  Ne7 {[%clk 0:02:35]} 10. Re1 {[%clk 0:02:38]}  O-O {[%clk 0:02:31]} 11. Nbd2 {[%clk 0:02:37]}  Ng6 {[%clk 0:02:28]} 12. Ba3 {[%clk 0:02:37]}  c6 {[%clk 0:02:26]} 13. d4 {[%clk 0:02:35]}  Re8 {[%clk 0:02:24]} 14. dxe5 {[%clk 0:02:35]}  Ng4 {[%clk 0:02:18]} 15. Re2 {[%clk 0:02:29]}  Nf4 {[%clk 0:02:16]} 16. exd6 {[%clk 0:02:21]}  Nxe2+ {[%clk 0:02:13]} 17. Qxe2 {[%clk 0:02:22]}  Nxf2 {[%clk 0:02:04]} 18. Nd4 {[%clk 0:02:22]}  Ng4 {[%clk 0:01:55]} 19. Rf1 {[%clk 0:02:18]}  Ne5 {[%clk 0:01:53]} 20. Qh5 {[%clk 0:02:16]}  Be6 {[%clk 0:01:30]} 21. Bxe6 {[%clk 0:02:06]}  Rxe6 {[%clk 0:01:30]} 22. Kh1 {[%clk 0:02:06]}  Re8 {[%clk 0:01:28]} 23. Rf5 {[%clk 0:01:54]}  Bxd4 {[%clk 0:01:07]} 24. cxd4 {[%clk 0:01:52]}  g6 {[%clk 0:01:07]} 25. Qxh6 {[%clk 0:01:50]}  gxf5 {[%clk 0:01:08]} 26. dxe5 {[%clk 0:01:50]}  Re6 {[%clk 0:00:56]} 27. Qf4 {[%clk 0:01:48]}  cxb5 {[%clk 0:00:43]} 28. exf5 {[%clk 0:01:47]}  Re8 {[%clk 0:00:12]} 29. f6 {[%clk 0:01:45]}  Kh7 {[%clk 0:00:10]} 30. Qh4+ {[%clk 0:01:44]}  Kg6 {[%clk 0:00:10]} 31. Qg4+ {[%clk 0:01:45]}  Kh6 {[%clk 0:00:10]} 32. Qg7+ {[%clk 0:01:44]}  Kh5 {[%clk 0:00:11]} 33. g4+ {[%clk 0:01:32]}  Kh4 {[%clk 0:00:11]} 34. Kg2 {[%clk 0:01:33]} 1-0


[Site "https://www.chess.com"]

[Event "Titled Tuesday Blitz January 25 2022"]
[White "Bortnyk, Olexandr"]
[Black "Mirzoev, Azer"]
[WhiteFideId "14120828"]
[BlackFideId "13400304"]
[WhiteElo "2723"]
[BlackElo "2525"]
[Result "1/2-1/2"]
[Round "11"]
[TimeControl "180+1"]
[Date "2022.01.26"]
[WhiteClock "0:00:04"]
[BlackClock "0:00:51"]

1. d4 {[%clk 0:03:00]}  d5 {[%clk 0:02:59]} 2. Nc3 {[%clk 0:03:01]}  c6 {[%clk 0:02:59]} 3. Bf4 {[%clk 0:03:02]}  Qb6 {[%clk 0:02:59]} 4. Rb1 {[%clk 0:03:00]}  Bf5 {[%clk 0:02:57]} 5. e3 {[%clk 0:03:00]}  e6 {[%clk 0:02:57]} 6. a3 {[%clk 0:02:55]}  Nd7 {[%clk 0:02:57]} 7. Nf3 {[%clk 0:02:56]}  Ngf6 {[%clk 0:02:56]} 8. Bd3 {[%clk 0:02:54]}  Bg6 {[%clk 0:02:54]} 9. O-O {[%clk 0:02:52]}  Be7 {[%clk 0:02:42]} 10. h3 {[%clk 0:02:50]}  O-O {[%clk 0:02:33]} 11. b4 {[%clk 0:01:44]}  a5 {[%clk 0:02:26]} 12. Na4 {[%clk 0:01:38]}  Qa7 {[%clk 0:02:25]} 13. Nc5 {[%clk 0:01:38]}  b6 {[%clk 0:02:13]} 14. Nxd7 {[%clk 0:01:32]}  Nxd7 {[%clk 0:02:13]} 15. Bxg6 {[%clk 0:01:02]}  hxg6 {[%clk 0:02:13]} 16. Re1 {[%clk 0:00:39]}  c5 {[%clk 0:02:06]} 17. b5 {[%clk 0:00:32]}  Rac8 {[%clk 0:02:02]} 18. a4 {[%clk 0:00:31]}  Qb7 {[%clk 0:01:58]} 19. c3 {[%clk 0:00:13]}  cxd4 {[%clk 0:01:49]} 20. cxd4 {[%clk 0:00:14]}  Bb4 {[%clk 0:01:49]} 21. Re2 {[%clk 0:00:14]}  Nf6 {[%clk 0:01:47]} 22. Ng5 {[%clk 0:00:12]}  Rc4 {[%clk 0:01:40]} 23. Rc2 {[%clk 0:00:12]}  Rfc8 {[%clk 0:01:39]} 24. Rxc4 {[%clk 0:00:13]}  dxc4 {[%clk 0:01:35]} 25. Qc2 {[%clk 0:00:13]}  c3 {[%clk 0:01:32]} 26. Be5 {[%clk 0:00:11]}  Qd5 {[%clk 0:01:26]} 27. Bxf6 {[%clk 0:00:10]}  gxf6 {[%clk 0:01:25]} 28. Ne4 {[%clk 0:00:11]}  Kg7 {[%clk 0:01:25]} 29. Rd1 {[%clk 0:00:07]}  f5 {[%clk 0:01:19]} 30. Ng5 {[%clk 0:00:05]}  Be7 {[%clk 0:01:19]} 31. Nf3 {[%clk 0:00:06]}  Qe4 {[%clk 0:01:18]} 32. Ne1 {[%clk 0:00:04]}  Bd6 {[%clk 0:01:02]} 33. Qxe4 {[%clk 0:00:02]}  fxe4 {[%clk 0:01:02]} 34. Nc2 {[%clk 0:00:03]}  Rc4 {[%clk 0:01:00]} 35. Ra1 {[%clk 0:00:04]}  e5 {[%clk 0:01:00]} 36. dxe5 {[%clk 0:00:02]}  Bxe5 {[%clk 0:01:00]} 37. Kf1 {[%clk 0:00:03]}  f5 {[%clk 0:00:58]} 38. g3 {[%clk 0:00:03]}  Kf6 {[%clk 0:00:58]} 39. h4 {[%clk 0:00:03]}  Ke6 {[%clk 0:00:58]} 40. Ke2 {[%clk 0:00:03]}  Kd5 {[%clk 0:00:55]} 41. Rd1+ {[%clk 0:00:03]}  Kc5 {[%clk 0:00:55]} 42. Ra1 {[%clk 0:00:03]}  Kd6 {[%clk 0:00:55]} 43. Rd1+ {[%clk 0:00:03]}  Ke6 {[%clk 0:00:56]} 44. Ra1 {[%clk 0:00:04]}  Rc8 {[%clk 0:00:54]} 45. Rd1 {[%clk 0:00:04]}  Rc4 {[%clk 0:00:51]} 46. Ra1 {[%clk 0:00:04]} 1/2-1/2


[Site "https://www.chess.com"]